[Event "Early-Titled-Tuesday-Blitz-February-27-2024"]
[Site "Chess.com"]
[Date "2024.02.27"]
[Round "1"]
[White "ChessboArt"]
[Black "Sadykov_Ramil"]
[Result "1-0"]
[WhiteElo "2264"]
[BlackElo "2591"]
[TimeControl "180+1"]
[EndTime "8:07:31 PST"]
[Termination "ChessboArt won by resignation"]

1. Nf3 {[%clk 0:03:00.9]} 1... d6 {[%clk 0:02:56.2]} 2. g3 {[%clk 0:03:01]} 2...
e5 {[%clk 0:02:54.7]} 3. d3 {[%clk 0:03:01.3]} 3... g6 {[%clk 0:02:45.3]} 4. Bg2
{[%clk 0:03:00.6]} 4... Bg7 {[%clk 0:02:45.6]} 5. c4 {[%clk 0:03:01.2]} 5... f5
{[%clk 0:02:42]} 6. Nc3 {[%clk 0:02:59.3]} 6... Nf6 {[%clk 0:02:42.3]} 7. O-O
{[%clk 0:02:59.1]} 7... O-O {[%clk 0:02:42.7]} 8. Rb1 {[%clk 0:02:59.6]} 8... a5
{[%clk 0:02:40.2]} 9. a3 {[%clk 0:02:59.3]} 9... h6 {[%clk 0:02:31.4]} 10. b4
{[%clk 0:02:57.2]} 10... axb4 {[%clk 0:02:32.3]} 11. axb4 {[%clk 0:02:58.1]}
11... c6 {[%clk 0:02:30.4]} 12. Bb2 {[%clk 0:02:56.4]} 12... Be6 {[%clk
0:02:28]} 13. Ra1 {[%clk 0:02:52.9]} 13... Rxa1 {[%clk 0:02:16.3]} 14. Qxa1
{[%clk 0:02:53.8]} 14... Na6 {[%clk 0:02:15.6]} 15. b5 {[%clk 0:02:47.7]} 15...
Nc5 {[%clk 0:02:13]} 16. Nd2 {[%clk 0:02:05.1]} 16... Qb6 {[%clk 0:01:54]} 17.
Rb1 {[%clk 0:01:41.1]} 17... Nfd7 {[%clk 0:01:36.9]} 18. bxc6 {[%clk 0:01:19.5]}
18... bxc6 {[%clk 0:01:37.8]} 19. Na4 {[%clk 0:01:19.9]} 19... Qc7 {[%clk
0:01:21.4]} 20. Nxc5 {[%clk 0:01:07.5]} 20... Nxc5 {[%clk 0:01:22.3]} 21. d4
{[%clk 0:01:07.6]} 21... Nd7 {[%clk 0:01:00.9]} 22. d5 {[%clk 0:01:02]} 22...
cxd5 {[%clk 0:01:01.8]} 23. cxd5 {[%clk 0:01:02.8]} 23... Bf7 {[%clk 0:01:00.9]}
24. Rc1 {[%clk 0:00:58.9]} 24... Nc5 {[%clk 0:01:00.2]} 25. Nc4 {[%clk 0:00:59]}
25... Rc8 {[%clk 0:00:57]} 26. Ba3 {[%clk 0:00:58.9]} 26... Qd8 {[%clk
0:00:55.4]} 27. Qb1 {[%clk 0:00:53.4]} 27... Rb8 {[%clk 0:00:53.1]} 28. Qc2
{[%clk 0:00:52.5]} 28... e4 {[%clk 0:00:53.2]} 29. Nxd6 {[%clk 0:00:44]} 29...
Qxd6 {[%clk 0:00:49.9]} 30. Qxc5 {[%clk 0:00:42.5]} 30... Qxd5 {[%clk
0:00:47.6]} 31. Qxd5 {[%clk 0:00:42]} 31... Bxd5 {[%clk 0:00:48.5]} 32. Bd6
{[%clk 0:00:40.5]} 32... Rd8 {[%clk 0:00:42.7]} 33. Bf4 {[%clk 0:00:39]} 33...
Ra8 {[%clk 0:00:34.6]} 34. h4 {[%clk 0:00:39]} 34... Ra2 {[%clk 0:00:33.1]} 35.
Bf1 {[%clk 0:00:35.9]} 35... Be6 {[%clk 0:00:28.7]} 36. Rc7 {[%clk 0:00:33.2]}
36... Rb2 {[%clk 0:00:25.1]} 37. Rxg7+ {[%clk 0:00:32]} 37... Kxg7 {[%clk
0:00:22]} 38. Be5+ {[%clk 0:00:32.3]} 38... Kf7 {[%clk 0:00:20.5]} 39. Bxb2
{[%clk 0:00:33.2]} 39... g5 {[%clk 0:00:21.2]} 40. hxg5 {[%clk 0:00:32.9]} 40...
hxg5 {[%clk 0:00:22.1]} 41. Bc1 {[%clk 0:00:33.5]} 41... g4 {[%clk 0:00:21.7]}
42. Kg2 {[%clk 0:00:34.1]} 42... Bc4 {[%clk 0:00:21.2]} 43. Bf4 {[%clk
0:00:34.3]} 43... Bd5 {[%clk 0:00:21.5]} 44. e3 {[%clk 0:00:34.6]} 44... Ke6
{[%clk 0:00:22]} 45. Bb5 {[%clk 0:00:34.5]} 45... Kf6 {[%clk 0:00:22.2]} 46. Kf1
{[%clk 0:00:34.9]} 46... Ke6 {[%clk 0:00:22.3]} 47. Ke2 {[%clk 0:00:35.4]} 47...
Kf6 {[%clk 0:00:21.5]} 48. Kd2 {[%clk 0:00:35.8]} 48... Bb3 {[%clk 0:00:21.4]}
49. Kc3 {[%clk 0:00:35.8]} 49... Bd5 {[%clk 0:00:21]} 50. Bc4 {[%clk 0:00:36.1]}
50... Bb7 {[%clk 0:00:20.6]} 51. Kd4 {[%clk 0:00:36.5]} 51... Bc6 {[%clk
0:00:20.1]} 52. Bd5 {[%clk 0:00:35.9]} 52... Kg6 {[%clk 0:00:20.5]} 53. Bxc6
{[%clk 0:00:35.2]} 1-0

[Event "Early-Titled-Tuesday-Blitz-February-27-2024"]
[Site "Chess.com"]
[Date "2024.02.27"]
[Round "1"]
[White "AradNazari"]
[Black "ajian"]
[Result "0-1"]
[WhiteElo "2791"]
[BlackElo "2471"]
[TimeControl "180+1"]
[EndTime "8:07:33 PST"]
[Termination "ajian won on time"]

1. e4 {[%clk 0:03:00.9]} 1... c5 {[%clk 0:02:58]} 2. Nf3 {[%clk 0:03:01]} 2...
Nc6 {[%clk 0:02:56.6]} 3. Bb5 {[%clk 0:03:01.2]} 3... e6 {[%clk 0:02:57]} 4.
Bxc6 {[%clk 0:03:00.8]} 4... bxc6 {[%clk 0:02:57.9]} 5. O-O {[%clk 0:03:00.3]}
5... Ne7 {[%clk 0:02:54.5]} 6. c3 {[%clk 0:03:00.8]} 6... d5 {[%clk 0:02:41]} 7.
Re1 {[%clk 0:02:59.8]} 7... Ng6 {[%clk 0:02:32.6]} 8. d4 {[%clk 0:02:59.4]} 8...
Be7 {[%clk 0:02:28.2]} 9. b3 {[%clk 0:02:55.4]} 9... O-O {[%clk 0:02:27.1]} 10.
Ba3 {[%clk 0:02:55.2]} 10... cxd4 {[%clk 0:02:23.4]} 11. cxd4 {[%clk 0:02:54.8]}
11... Bxa3 {[%clk 0:02:12]} 12. Nxa3 {[%clk 0:02:55.7]} 12... Qa5 {[%clk
0:02:11.2]} 13. Qc1 {[%clk 0:02:49.5]} 13... Ba6 {[%clk 0:02:09.8]} 14. Nc2
{[%clk 0:02:25.7]} 14... Rac8 {[%clk 0:01:56.7]} 15. Qd2 {[%clk 0:02:17.5]}
15... Qb6 {[%clk 0:01:44]} 16. Nb4 {[%clk 0:01:50.7]} 16... Rfd8 {[%clk
0:01:37.8]} 17. exd5 {[%clk 0:01:44.9]} 17... cxd5 {[%clk 0:01:36.4]} 18. Nxa6
{[%clk 0:01:44.2]} 18... Qxa6 {[%clk 0:01:36.1]} 19. Rac1 {[%clk 0:01:44.8]}
19... Ne7 {[%clk 0:01:29.7]} 20. h3 {[%clk 0:01:39.9]} 20... Nf5 {[%clk
0:01:28.7]} 21. Rxc8 {[%clk 0:01:27.8]} 21... Rxc8 {[%clk 0:01:28.4]} 22. Rc1
{[%clk 0:01:28.3]} 22... h6 {[%clk 0:01:25.2]} 23. Rxc8+ {[%clk 0:01:21.8]}
23... Qxc8 {[%clk 0:01:26.1]} 24. g4 {[%clk 0:01:15.5]} 24... Nd6 {[%clk
0:01:23.7]} 25. a4 {[%clk 0:01:06.3]} 25... Ne4 {[%clk 0:01:22.7]} 26. Qb2
{[%clk 0:01:06.7]} 26... a5 {[%clk 0:01:13.4]} 27. Nd2 {[%clk 0:01:03.4]} 27...
Nc3 {[%clk 0:00:48.7]} 28. Nc4 {[%clk 0:00:49.7]} 28... Nd1 {[%clk 0:00:39.7]}
29. Nd6 {[%clk 0:00:34.3]} 29... Qb8 {[%clk 0:00:23.9]} 30. Qd2 {[%clk
0:00:31.9]} 30... Qxb3 {[%clk 0:00:18.5]} 31. Qxa5 {[%clk 0:00:17.1]} 31... Qc2
{[%clk 0:00:18.7]} 32. Qd8+ {[%clk 0:00:10.7]} 32... Kh7 {[%clk 0:00:18.8]} 33.
Qh4 {[%clk 0:00:11.4]} 33... Qxa4 {[%clk 0:00:17.4]} 34. Nxf7 {[%clk 0:00:10.4]}
34... Qxd4 {[%clk 0:00:14.2]} 35. Ng5+ {[%clk 0:00:11.1]} 35... Kg6 {[%clk
0:00:14]} 36. Qh5+ {[%clk 0:00:06.7]} 36... Kf6 {[%clk 0:00:13.6]} 37. Nf3
{[%clk 0:00:02.9]} 37... Qxf2+ {[%clk 0:00:13.7]} 0-1

[Event "Early-Titled-Tuesday-Blitz-February-27-2024"]
[Site "Chess.com"]
[Date "2024.02.27"]
[Round "1"]
[White "GP9isback23"]
[Black "BozeKat"]
[Result "1-0"]
[WhiteElo "2569"]
[BlackElo "2135"]
[TimeControl "180+1"]
[EndTime "8:07:33 PST"]
[Termination "GP9isback23 won by resignation"]

1. d4 {[%clk 0:03:00]} 1... Nf6 {[%clk 0:02:57.5]} 2. Nf3 {[%clk 0:02:59.1]}
2... c5 {[%clk 0:02:52.9]} 3. e3 {[%clk 0:02:58.7]} 3... d5 {[%clk 0:02:50.4]}
4. Be2 {[%clk 0:02:58.4]} 4... Nc6 {[%clk 0:02:50.4]} 5. O-O {[%clk 0:02:58]}
5... e6 {[%clk 0:02:48.3]} 6. b3 {[%clk 0:02:57.7]} 6... Be7 {[%clk 0:02:48]} 7.
Bb2 {[%clk 0:02:57.8]} 7... O-O {[%clk 0:02:43.8]} 8. Nbd2 {[%clk 0:02:56.4]}
8... b6 {[%clk 0:02:39.8]} 9. c4 {[%clk 0:02:53.6]} 9... Bb7 {[%clk 0:02:37.3]}
10. Rc1 {[%clk 0:02:52.3]} 10... Rc8 {[%clk 0:02:35.9]} 11. a3 {[%clk
0:02:50.2]} 11... cxd4 {[%clk 0:02:16.1]} 12. exd4 {[%clk 0:02:49.5]} 12... Re8
{[%clk 0:01:52]} 13. Bd3 {[%clk 0:02:48.7]} 13... dxc4 {[%clk 0:01:43.4]} 14.
bxc4 {[%clk 0:02:48.5]} 14... Na5 {[%clk 0:01:42]} 15. Qe2 {[%clk 0:02:48.2]}
15... Qd7 {[%clk 0:01:34.9]} 16. Ne5 {[%clk 0:02:47.6]} 16... Qa4 {[%clk
0:01:32.8]} 17. Rfe1 {[%clk 0:02:40.1]} 17... Nc6 {[%clk 0:01:18.5]} 18. Bc2
{[%clk 0:02:35.3]} 18... Qa6 {[%clk 0:01:15.7]} 19. Bd3 {[%clk 0:02:13.7]} 19...
Red8 {[%clk 0:00:56.5]} 20. Nxf7 {[%clk 0:02:04]} 20... Kxf7 {[%clk 0:00:46.6]}
21. Qxe6+ {[%clk 0:01:59]} 21... Kf8 {[%clk 0:00:47.1]} 22. d5 {[%clk
0:01:57.9]} 22... Rd6 {[%clk 0:00:44.7]} 23. Qe2 {[%clk 0:01:53.8]} 23... Re8
{[%clk 0:00:40]} 24. c5 {[%clk 0:01:49.7]} 24... Qa4 {[%clk 0:00:36.7]} 25. cxd6
{[%clk 0:01:42.4]} 25... Bxd6 {[%clk 0:00:36.2]} 26. Qf3 {[%clk 0:01:39.8]}
26... Ne5 {[%clk 0:00:34.3]} 27. Bxe5 {[%clk 0:01:32.2]} 27... Bxe5 {[%clk
0:00:32.8]} 28. Qf5 {[%clk 0:01:21.7]} 28... Bb2 {[%clk 0:00:19.6]} 29. Rxe8+
{[%clk 0:01:19]} 29... Qxe8 {[%clk 0:00:20.5]} 30. Rb1 {[%clk 0:01:10.8]} 30...
Bxa3 {[%clk 0:00:20.4]} 31. Ne4 {[%clk 0:00:59.9]} 31... Bxd5 {[%clk 0:00:17]}
32. Nxf6 {[%clk 0:00:56.4]} 32... Be6 {[%clk 0:00:13.4]} 33. Nxe8+ {[%clk
0:00:52.3]} 33... Bxf5 {[%clk 0:00:12.1]} 34. Bxf5 {[%clk 0:00:52.7]} 34... Kxe8
{[%clk 0:00:10.8]} 35. Ra1 {[%clk 0:00:52.5]} 35... Bc5 {[%clk 0:00:08.8]} 36.
Rxa7 {[%clk 0:00:51.4]} 36... g6 {[%clk 0:00:08.7]} 37. Bd3 {[%clk 0:00:50.1]}
37... Kd8 {[%clk 0:00:07.8]} 38. Rxh7 {[%clk 0:00:50.3]} 38... b5 {[%clk
0:00:08.3]} 39. Bxb5 {[%clk 0:00:50.2]} 39... g5 {[%clk 0:00:07]} 40. Be2 {[%clk
0:00:49.9]} 40... g4 {[%clk 0:00:07.6]} 41. Bxg4 {[%clk 0:00:49.4]} 41... Ke8
{[%clk 0:00:08]} 42. Be2 {[%clk 0:00:49.7]} 42... Kf8 {[%clk 0:00:08.5]} 43. Rh3
{[%clk 0:00:50.1]} 43... Kg7 {[%clk 0:00:08.6]} 44. Rd3 {[%clk 0:00:50.5]} 44...
Be7 {[%clk 0:00:08.3]} 45. Kf1 {[%clk 0:00:50.4]} 45... Bb4 {[%clk 0:00:08.5]}
46. g3 {[%clk 0:00:51.3]} 46... Kg6 {[%clk 0:00:08.7]} 47. Kg2 {[%clk
0:00:52.2]} 47... Kg5 {[%clk 0:00:09.2]} 48. h4+ {[%clk 0:00:53.1]} 48... Kh6
{[%clk 0:00:08.7]} 49. Rd5 {[%clk 0:00:52.9]} 49... Be7 {[%clk 0:00:08]} 50. Kh3
{[%clk 0:00:51.5]} 50... Kg6 {[%clk 0:00:07.3]} 51. g4 {[%clk 0:00:50.5]} 51...
Kh6 {[%clk 0:00:07.5]} 52. f4 {[%clk 0:00:50.4]} 52... Bd8 {[%clk 0:00:07.1]}
53. Rd6+ {[%clk 0:00:49.9]} 53... Kh7 {[%clk 0:00:07.1]} 54. Rxd8 {[%clk
0:00:49.5]} 54... Kh6 {[%clk 0:00:07.4]} 55. Rd6+ {[%clk 0:00:48.7]} 55... Kh7
{[%clk 0:00:07.7]} 56. g5 {[%clk 0:00:49]} 56... Kg7 {[%clk 0:00:07.8]} 57. h5
{[%clk 0:00:49.4]} 57... Kh8 {[%clk 0:00:07.5]} 58. f5 {[%clk 0:00:50]} 1-0

[Event "Early-Titled-Tuesday-Blitz-February-27-2024"]
[Site "Chess.com"]
[Date "2024.02.27"]
[Round "1"]
[White "LastGladiator1"]
[Black "DeArron_Fox"]
[Result "1-0"]
[WhiteElo "2989"]
[BlackElo "2521"]
[TimeControl "180+1"]
[EndTime "8:07:35 PST"]
[Termination "LastGladiator1 won by checkmate"]

1. e4 {[%clk 0:03:00.9]} 1... c5 {[%clk 0:02:43.7]} 2. Nf3 {[%clk 0:03:00.5]}
2... e6 {[%clk 0:02:42.7]} 3. Nc3 {[%clk 0:02:54.5]} 3... a6 {[%clk 0:02:41.3]}
4. g3 {[%clk 0:02:48.5]} 4... b5 {[%clk 0:02:41]} 5. Bg2 {[%clk 0:02:48.5]} 5...
Bb7 {[%clk 0:02:40.5]} 6. d3 {[%clk 0:02:48.7]} 6... Nf6 {[%clk 0:02:39.3]} 7.
O-O {[%clk 0:02:48.6]} 7... d5 {[%clk 0:01:57.1]} 8. e5 {[%clk 0:02:46.8]} 8...
Nfd7 {[%clk 0:01:56.5]} 9. Re1 {[%clk 0:02:44.5]} 9... Nc6 {[%clk 0:01:57]} 10.
Bf4 {[%clk 0:02:42.9]} 10... Be7 {[%clk 0:01:51.9]} 11. h4 {[%clk 0:02:42.8]}
11... h6 {[%clk 0:01:50.6]} 12. h5 {[%clk 0:02:41.9]} 12... Nb6 {[%clk
0:01:06.7]} 13. a4 {[%clk 0:02:28.6]} 13... b4 {[%clk 0:00:48.9]} 14. Ne2 {[%clk
0:02:25.7]} 14... a5 {[%clk 0:00:35]} 15. Qc1 {[%clk 0:02:11.4]} 15... Ba6
{[%clk 0:00:30.2]} 16. g4 {[%clk 0:01:58.9]} 16... Qc7 {[%clk 0:00:22]} 17. Ng3
{[%clk 0:01:51.9]} 17... b3 {[%clk 0:00:13.8]} 18. cxb3 {[%clk 0:01:43.6]} 18...
Nb4 {[%clk 0:00:10.4]} 19. d4 {[%clk 0:01:31.5]} 19... Nd3 {[%clk 0:00:10.2]}
20. Qd2 {[%clk 0:01:23.4]} 20... cxd4 {[%clk 0:00:08.4]} 21. Rec1 {[%clk
0:01:15.6]} 21... Nxc1 {[%clk 0:00:07.1]} 22. Rxc1 {[%clk 0:01:16.5]} 22... Qb8
{[%clk 0:00:03.4]} 23. Nxd4 {[%clk 0:01:12.3]} 23... Nd7 {[%clk 0:00:03.7]} 24.
Qe3 {[%clk 0:00:48.8]} 24... Qb4 {[%clk 0:00:02.7]} 25. Nc6 {[%clk 0:00:47]}
25... Qb6 {[%clk 0:00:03.4]} 26. Qd2 {[%clk 0:00:37.6]} 26... Rc8 {[%clk
0:00:03.3]} 27. Be3 {[%clk 0:00:34.8]} 27... Qb7 {[%clk 0:00:02.2]} 28. Nxa5
{[%clk 0:00:33]} 28... Rxc1+ {[%clk 0:00:03.1]} 29. Qxc1 {[%clk 0:00:33.2]}
29... Qb4 {[%clk 0:00:03.4]} 30. Nc6 {[%clk 0:00:33.4]} 30... Qxg4 {[%clk
0:00:03.5]} 31. Nxe7 {[%clk 0:00:32.8]} 31... Kxe7 {[%clk 0:00:04.4]} 32. Qc6
{[%clk 0:00:32.6]} 32... Bd3 {[%clk 0:00:01.9]} 33. Qd6+ {[%clk 0:00:32.4]}
33... Ke8 {[%clk 0:00:02]} 34. a5 {[%clk 0:00:29.7]} 34... Qd1+ {[%clk
0:00:02.6]} 35. Kh2 {[%clk 0:00:29.6]} 35... Qxb3 {[%clk 0:00:03]} 36. a6 {[%clk
0:00:28.3]} 36... Qa4 {[%clk 0:00:02.7]} 37. a7 {[%clk 0:00:28.2]} 37... Qh4+
{[%clk 0:00:01.9]} 38. Kg1 {[%clk 0:00:27.7]} 38... Qa4 {[%clk 0:00:02.8]} 39.
b3 {[%clk 0:00:24]} 39... Qa1+ {[%clk 0:00:02.4]} 40. Kh2 {[%clk 0:00:24.2]}
40... Nxe5 {[%clk 0:00:02.3]} 41. Qxe5 {[%clk 0:00:24]} 41... Qxe5 {[%clk
0:00:02]} 42. a8=Q+ {[%clk 0:00:24.3]} 42... Ke7 {[%clk 0:00:02.2]} 43. Qxh8
{[%clk 0:00:24.8]} 43... d4 {[%clk 0:00:02.5]} 44. Bd2 {[%clk 0:00:23.2]} 44...
f5 {[%clk 0:00:02.8]} 45. Bb4+ {[%clk 0:00:22.4]} 45... Kf6 {[%clk 0:00:02]} 46.
Qd8+ {[%clk 0:00:22.3]} 46... Kf7 {[%clk 0:00:01.8]} 47. Qf8# {[%clk 0:00:23]}
1-0

[Event "Early-Titled-Tuesday-Blitz-February-27-2024"]
[Site "Chess.com"]
[Date "2024.02.27"]
[Round "1"]
[White "Jumbo"]
[Black "EsmeraldasAnderson03"]
[Result "1-0"]
[WhiteElo "2861"]
[BlackElo "2484"]
[TimeControl "180+1"]
[EndTime "8:07:37 PST"]
[Termination "Jumbo won on time"]

1. d4 {[%clk 0:03:00.9]} 1... d5 {[%clk 0:02:59.4]} 2. Nf3 {[%clk 0:03:00.2]}
2... Nf6 {[%clk 0:02:59.5]} 3. c4 {[%clk 0:03:00.8]} 3... dxc4 {[%clk
0:03:00.2]} 4. e3 {[%clk 0:03:00.1]} 4... a6 {[%clk 0:03:00.3]} 5. Bxc4 {[%clk
0:03:00.6]} 5... e6 {[%clk 0:03:01.2]} 6. O-O {[%clk 0:03:00.2]} 6... c5 {[%clk
0:03:01.4]} 7. dxc5 {[%clk 0:03:00.6]} 7... Qxd1 {[%clk 0:03:00.9]} 8. Rxd1
{[%clk 0:03:01.5]} 8... Bxc5 {[%clk 0:03:01]} 9. Be2 {[%clk 0:03:01.6]} 9...
Nbd7 {[%clk 0:02:57.8]} 10. Nfd2 {[%clk 0:03:01.8]} 10... b5 {[%clk 0:02:43.5]}
11. Nb3 {[%clk 0:02:59.7]} 11... Bb6 {[%clk 0:02:40.3]} 12. a4 {[%clk
0:02:59.4]} 12... b4 {[%clk 0:02:37.8]} 13. a5 {[%clk 0:02:56.4]} 13... Ba7
{[%clk 0:02:38]} 14. Bd2 {[%clk 0:02:54.4]} 14... Rb8 {[%clk 0:02:36.5]} 15. Rc1
{[%clk 0:02:52.9]} 15... Kd8 {[%clk 0:02:29.3]} 16. Be1 {[%clk 0:02:48.4]} 16...
Bb7 {[%clk 0:02:25.1]} 17. N1d2 {[%clk 0:02:48.2]} 17... Nd5 {[%clk 0:02:11.1]}
18. Nc4 {[%clk 0:02:44.2]} 18... Ke7 {[%clk 0:01:54.6]} 19. e4 {[%clk 0:02:30]}
19... Nf4 {[%clk 0:01:54.8]} 20. Bxb4+ {[%clk 0:02:30.3]} 20... Kf6 {[%clk
0:01:54.7]} 21. Bf1 {[%clk 0:02:29.7]} 21... Bxe4 {[%clk 0:01:51.3]} 22. Bc3+
{[%clk 0:02:18.4]} 22... Kg6 {[%clk 0:01:44.5]} 23. Rd1 {[%clk 0:02:08.2]} 23...
Nd5 {[%clk 0:01:23.1]} 24. Bd4 {[%clk 0:01:55.3]} 24... Rxb3 {[%clk 0:01:19]}
25. Bxa7 {[%clk 0:01:54.6]} 25... h5 {[%clk 0:00:57.5]} 26. Nd6 {[%clk 0:01:38]}
26... Bc2 {[%clk 0:00:54.3]} 27. Rd2 {[%clk 0:01:38.3]} 27... Nb4 {[%clk
0:00:43.9]} 28. Bd4 {[%clk 0:01:31.1]} 28... Nf6 {[%clk 0:00:32.7]} 29. Bc4
{[%clk 0:01:29.9]} 29... Rd8 {[%clk 0:00:19.5]} 30. Bxb3 {[%clk 0:00:59.5]}
30... Bxb3 {[%clk 0:00:20.4]} 31. Bb6 {[%clk 0:00:59.8]} 31... Rd7 {[%clk
0:00:17.2]} 32. Rc1 {[%clk 0:01:00.2]} 32... Bd5 {[%clk 0:00:12.5]} 33. Nc4
{[%clk 0:00:54.8]} 33... Kf5 {[%clk 0:00:03.3]} 34. Ne3+ {[%clk 0:00:52.7]}
34... Kg6 {[%clk 0:00:02.8]} 35. f3 {[%clk 0:00:52.9]} 35... Rb7 {[%clk
0:00:02.2]} 36. Rc7 {[%clk 0:00:51.4]} 36... Rxc7 {[%clk 0:00:02.6]} 37. Bxc7
{[%clk 0:00:52.3]} 37... Bc6 {[%clk 0:00:02.9]} 38. Nc4 {[%clk 0:00:49.4]} 38...
Bb5 {[%clk 0:00:02.8]} 39. Ne5+ {[%clk 0:00:49.4]} 39... Kf5 {[%clk 0:00:02.4]}
40. Nxf7 {[%clk 0:00:50]} 40... Nfd5 {[%clk 0:00:02.6]} 41. Nd6+ {[%clk
0:00:50.4]} 41... Kf6 {[%clk 0:00:02.5]} 42. Nxb5 {[%clk 0:00:50.3]} 42... axb5
{[%clk 0:00:03.3]} 43. Bd6 {[%clk 0:00:49.9]} 43... Na6 {[%clk 0:00:03.2]} 44.
f4 {[%clk 0:00:50.2]} 44... Kf5 {[%clk 0:00:03.4]} 45. Rd4 {[%clk 0:00:50.7]}
45... Nf6 {[%clk 0:00:02.6]} 46. Be5 {[%clk 0:00:46.2]} 46... Nd5 {[%clk
0:00:03.1]} 47. Bxg7 {[%clk 0:00:45.9]} 47... Nxf4 {[%clk 0:00:02.8]} 48. Rd6
{[%clk 0:00:46.5]} 48... Nc5 {[%clk 0:00:02.3]} 49. a6 {[%clk 0:00:43]} 49...
Nd5 {[%clk 0:00:02.3]} 50. a7 {[%clk 0:00:42.5]} 50... Nc7 {[%clk 0:00:01.5]}
51. Rc6 {[%clk 0:00:42.3]} 51... Na8 {[%clk 0:00:01.2]} 52. Rxc5+ {[%clk
0:00:42.4]} 1-0

[Event "Early-Titled-Tuesday-Blitz-February-27-2024"]
[Site "Chess.com"]
[Date "2024.02.27"]
[Round "1"]
[White "Kostukov_Alex"]
[Black "Ginger_GM"]
[Result "0-1"]
[WhiteElo "2363"]
[BlackElo "2663"]
[TimeControl "180+1"]
[EndTime "8:07:38 PST"]
[Termination "Ginger_GM won on time"]

1. g3 {[%clk 0:02:58.4]} 1... f5 {[%clk 0:02:59.1]} 2. Bg2 {[%clk 0:02:56.1]}
2... Nf6 {[%clk 0:02:59]} 3. d4 {[%clk 0:02:56.3]} 3... e6 {[%clk 0:02:58.5]} 4.
Nf3 {[%clk 0:02:52.9]} 4... Be7 {[%clk 0:02:57.6]} 5. O-O {[%clk 0:02:52.9]}
5... O-O {[%clk 0:02:57.7]} 6. c4 {[%clk 0:02:53.6]} 6... d6 {[%clk 0:02:57.5]}
7. Nc3 {[%clk 0:02:51.4]} 7... Ne4 {[%clk 0:02:55.9]} 8. Qb3 {[%clk 0:02:42.5]}
8... Nxc3 {[%clk 0:02:50.4]} 9. Qxc3 {[%clk 0:02:35.8]} 9... a5 {[%clk
0:02:38.8]} 10. b3 {[%clk 0:02:28.8]} 10... Bf6 {[%clk 0:02:38.5]} 11. Bb2
{[%clk 0:02:27.1]} 11... Nc6 {[%clk 0:02:38.6]} 12. Qd2 {[%clk 0:02:22.8]} 12...
e5 {[%clk 0:02:38.4]} 13. dxe5 {[%clk 0:02:19.3]} 13... dxe5 {[%clk 0:02:38.2]}
14. Rfd1 {[%clk 0:02:00.9]} 14... Qe7 {[%clk 0:02:32.2]} 15. Qc2 {[%clk
0:01:36.1]} 15... g5 {[%clk 0:02:30.6]} 16. e3 {[%clk 0:01:30]} 16... g4 {[%clk
0:02:28.9]} 17. Nd2 {[%clk 0:01:19.3]} 17... e4 {[%clk 0:02:28.8]} 18. a3 {[%clk
0:01:12.4]} 18... Ne5 {[%clk 0:02:25.9]} 19. Bxe5 {[%clk 0:01:02.5]} 19... Bxe5
{[%clk 0:02:25.2]} 20. Rac1 {[%clk 0:01:02.4]} 20... Be6 {[%clk 0:02:24.4]} 21.
Nb1 {[%clk 0:00:58.8]} 21... c6 {[%clk 0:02:18.3]} 22. Nc3 {[%clk 0:00:55.3]}
22... Qxa3 {[%clk 0:02:16.1]} 23. Ne2 {[%clk 0:00:46.5]} 23... Rfd8 {[%clk
0:02:05]} 24. Nd4 {[%clk 0:00:44.8]} 24... Qe7 {[%clk 0:02:03.7]} 25. Rd2 {[%clk
0:00:40.8]} 25... c5 {[%clk 0:01:58.3]} 26. Nb5 {[%clk 0:00:38.4]} 26... b6
{[%clk 0:01:40.2]} 27. Rcd1 {[%clk 0:00:30.9]} 27... Rxd2 {[%clk 0:01:39.4]} 28.
Rxd2 {[%clk 0:00:26.6]} 28... Rd8 {[%clk 0:01:36.6]} 29. Bf1 {[%clk 0:00:24.9]}
29... Rxd2 {[%clk 0:01:36]} 30. Qxd2 {[%clk 0:00:25.1]} 30... Qd7 {[%clk
0:01:36.2]} 31. Qxd7 {[%clk 0:00:21.2]} 31... Bxd7 {[%clk 0:01:36.1]} 32. Be2
{[%clk 0:00:21.2]} 32... Kf7 {[%clk 0:01:35.5]} 33. Kf1 {[%clk 0:00:20.7]} 33...
h5 {[%clk 0:01:05.9]} 34. Ke1 {[%clk 0:00:20.1]} 34... h4 {[%clk 0:01:05.5]} 35.
Kd2 {[%clk 0:00:19.5]} 35... Ke7 {[%clk 0:01:01]} 36. Kc2 {[%clk 0:00:18.5]}
36... Kd8 {[%clk 0:01:00.2]} 37. Bd1 {[%clk 0:00:16.3]} 37... Kc8 {[%clk
0:00:59.4]} 38. Be2 {[%clk 0:00:16.8]} 38... Kb7 {[%clk 0:00:59.6]} 39. Bf1
{[%clk 0:00:16.8]} 39... Ka6 {[%clk 0:00:57]} 40. Be2 {[%clk 0:00:16.9]} 40...
h3 {[%clk 0:00:42.4]} 41. Bf1 {[%clk 0:00:16.4]} 41... f4 {[%clk 0:00:22.5]} 42.
exf4 {[%clk 0:00:11.6]} 42... Bd4 {[%clk 0:00:22.3]} 43. Nxd4 {[%clk 0:00:11]}
43... cxd4 {[%clk 0:00:22.6]} 44. Be2 {[%clk 0:00:08.1]} 44... Kb7 {[%clk
0:00:21.5]} 45. Bf1 {[%clk 0:00:06.8]} 45... Kc6 {[%clk 0:00:21.9]} 46. Kb2
{[%clk 0:00:06.7]} 46... Kc5 {[%clk 0:00:22]} 47. Ka3 {[%clk 0:00:06.8]} 47...
d3 {[%clk 0:00:22.2]} 48. Kb2 {[%clk 0:00:06.2]} 48... Kd4 {[%clk 0:00:22.6]}
0-1